Cogmind - Beta 16.1 @@@ ROGUE MODE // 2026.02.16 @ 21:39:21 Player: UniqueName Result: Destroyed by S-27 Virus with Autogun Performance ------------- Evolutions (4) 2000 Regions Visited (8) 1600 Robots Destroyed (74) 370 Value Destroyed (3000) 3000 Prototype IDs (33) 660 Alien Tech Used (0) 0 Bonus (1012) 1012 TOTAL SCORE: 8642 Bonus ------- High Alert Combat Kills 12 Entered Garrisons 200 Used RIF Installer 500 Aligned with FarCom 300 Cogmind --------- Core Integrity 0/850 Matter 184/300 Energy 146/150 System Corruption 1% Temperature Cool (9) Movement Walking (120) Location -6/Garrison Parts ------- > --- POWER (2) -------- Light Angular Momentum Engine > --- PROPULSION (6) --- Light Treads Light Treads Flexi-carbon Leg Flexi-carbon Leg Flexi-carbon Leg Flexi-carbon Leg > --- UTILITY (4) ------ Advanced Heat Sink High-capacity Storage Unit Improved Signal Interpreter Improved Light Armor Plating > --- WEAPON (3) ------- Gauss Rifle Flak Gun > --- INVENTORY (20) --- Improved Deuterium Engine Light Angular Momentum Engine Light Treads Light Treads Flexi-carbon Leg Improved Heat Sink Energy Well (350) Matter Compressor (250) Improved Medium Armor Plating Wave Gun Long-range Proton Cannon Long-range Proton Cannon Heavy Plasma Cannon Gauss Rifle Flak Gun Shock Bomb Launcher Heavy Rocket Launcher Heavy Flail Chainsword Lance Peak State ------------ > --- POWER ------------ Improved Deuterium Engine Light Angular Momentum Engine > --- PROPULSION ------- Carbon-fiber Leg Flexi-carbon Leg Flexi-carbon Leg Flexi-carbon Leg Flexi-carbon Leg Armored Leg > --- UTILITY ---------- High-capacity Storage Unit Improved Signal Interpreter Phase Shifter Layered Light Armor Plating > --- WEAPON ----------- Heavy Laser Wave Gun Flak Gun > --- INVENTORY -------- Improved Deuterium Engine Light Angular Momentum Engine Flexi-carbon Leg Energy Well Matter Compressor Improved Medium Armor Plating Wave Gun Long-range Proton Cannon Long-range Proton Cannon Heavy Plasma Cannon Gauss Rifle Gauss Rifle Flak Gun Shock Bomb Launcher Heavy Rocket Launcher Heavy Flail Chainsword Lance [Rating: 72] Favorites ----------- Power Ion Engine Engine Ion Engine Power Core Light Nuclear Core Propulsion Aluminum Leg Treads Light Treads Leg Aluminum Leg Wheel Armored Wheel Flight Unit VTOL Module Utility Medium Storage Unit Device ECM Suite Storage Medium Storage Unit Processor Improved Signal Interpreter Protection Light Armor Plating Weapon Katana Energy Gun Medium Laser Energy Cannon Heavy Plasma Cannon Ballistic Gun Assault Rifle Ballistic Cannon Gauss Cannon Launcher Heavy Rocket Launcher Slashing Weapon Katana Piercing Weapon Lance Build | -11 -10 -10 -10 -9 -8 -7 -6 -6 ------- Run | Yrd Mat Min Exi Min Mat Fac Fac Gar Slots Evolved 8 | . . . . . 4 2 2 . Power 1 | . . . . . . 1 . . Propulsion 4 | . . . . . 3 1 . . Utility 2 | . . . . . 1 . 1 . Weapon 1 | . . . . . . . 1 . Parts Attached 100 | 6 6 3 2 6 21 26 3 27 Power 15 | 1 1 . . 1 4 6 . 2 Engine 10 | 1 1 . . 1 1 4 . 2 Core 5 | . . . . . 3 2 . . Reactor . | . . . . . . . . . Propulsion 37 | 2 2 1 2 1 8 13 1 7 Treads 8 | 2 . . 2 . 2 . . 2 Leg 13 | . 2 1 . . 1 3 1 5 Wheel 4 | . . . . 1 3 . . . Hover . | . . . . . . . . . Flight 12 | . . . . . 2 10 . . Utility 17 | 1 2 . . 2 3 2 2 5 Device 7 | . . . . 1 1 1 1 3 Storage 3 | 1 1 . . 1 . . . . Processor 3 | . . . . . 1 1 1 . Hackware . | . . . . . . . . . Protection 4 | . 1 . . . 1 . . 2 Artifact . | . . . . . . . . . Weapon 31 | 2 1 2 . 2 6 5 . 13 Energy Gun 14 | 1 1 2 . 1 2 2 . 5 Energy Cannon 1 | . . . . . . . . 1 Ballistic Gun 7 | 1 . . . 1 . 1 . 4 Ballistic Cannon 2 | . . . . . 1 1 . . Launcher 3 | . . . . . 2 . . 1 Special Weapon . | . . . . . . . . . Impact Weapon . | . . . . . . . . . Slashing Weapon 3 | . . . . . 1 1 . 1 Piercing Weapon 1 | . . . . . . . . 1 Special Melee Weapon . | . . . . . . . . . Unidentified Prototypes . | . . . . . . . . . Parts Lost 43 | . 1 3 . . 6 17 . 16 Power 7 | . . . . . 1 4 . 2 Propulsion 19 | . 1 . . . 3 9 . 6 Utility 6 | . . 1 . . 1 2 . 2 Weapon 11 | . . 2 . . 1 2 . 6 Highest Loss Streak 12 | . 1 2 . . 5 8 . 12 To Critical Strikes 1 | . . . . . 1 . . . Average Backups 11 | 2 7 8 7 6 10 17 16 17 Power 1 | . 1 1 2 1 . 2 2 1 Propulsion 2 | 1 3 4 3 2 2 3 1 1 Utility 1 | . . 1 1 1 1 2 2 3 Weapon 5 | . 2 2 1 1 5 8 10 10 Tool/Special . | . . . . . . . . . Unused Backups 26 | . 2 . . 3 3 2 . 16 Power 4 | . . . . . 1 . . 3 Propulsion 8 | . 2 . . 2 1 . . 3 Utility 3 | . . . . . . . . 3 Weapon 11 | . . . . 1 1 2 . 7 Tool/Special . | . . . . . . . . . Average Slot Usage (%) 84 | . 90 98 85 92 70 69 83 89 Engine 9 | . 14 14 14 14 3 3 6 10 Core 1 | . . . . . 5 3 . . Treads 3 | . 6 . 19 16 . . . 3 Leg 16 | . 21 28 8 . 1 5 24 30 Wheel 2 | . . . . 5 15 . . . Flight 6 | . . . . . 4 25 14 . Device 3 | . . . . 12 12 3 4 4 Storage 10 | . 16 14 14 14 9 7 6 6 Processor 3 | . . . . . 2 6 13 6 Protection 4 | . 3 12 . . 1 . . 5 Energy Gun 11 | . 14 16 28 22 6 2 . 6 Ballistic Gun 6 | . 14 11 . 5 5 1 . 7 Slashing Weapon 2 | . . . . . 1 7 13 . Peak Build Rating 72 | 6 8 8 10 23 52 66 48 72 Average Rating 28 | 4 7 7 9 15 37 44 44 58 On Entrance 21 | . 6 8 7 10 23 52 36 48 Avg Prop Armor Cover (%) 6 | . . . . . 7 6 4 6 Naked Turns . | . . . . . . . . . Heaviest Build 82 | 11 25 23 19 25 54 65 55 82 Greatest Support 111 | 40 40 20 40 40 62 62 56 111 Greatest Overweight (x) 16 | . 1 1 . . 16 4 1 2 Average Overweight (x) . | . . . . . . . . . Largest Inventory Capacity 20 | 8 10 10 10 20 20 20 20 20 Average Capacity 14 | 7 8 10 10 10 15 20 20 20 Most Carried 20 | 4 9 9 10 10 18 20 18 20 Average Carried 12 | 2 7 8 9 9 12 17 16 17 Final Capacity 20 | 8 10 10 10 10 20 20 20 20 Final Carried 20 | 4 9 8 10 10 18 16 18 20 Class Distribution -------------------- 46% | Scavenger-Mutant 34% | Mutant 10% | Scavenger-Gladiator 6% | Scavenger-Skirmisher Dominant Class ---------------- Mutant | -10/Materials Scavenger-Mutant | -10/Mines Scavenger-Mutant | -10/Exiles Scavenger-Mutant | -9/Mines Mutant | -8/Materials Mutant | -7/Factory Scavenger-Gladiator | -6/Factory Scavenger-Skirmisher | -6/Garrison Resources | -11 -10 -10 -10 -9 -8 -7 -6 -6 ----------- Run | Yrd Mat Min Exi Min Mat Fac Fac Gar Matter Collected 2347 | 199 208 68 . 20 476 466 . 910 Remotely . | . . . . . . . . . Salvage Created 3203 | . 400 156 . . 1009 652 . 986 Parts 159 | . 23 14 . . 56 28 . 38 Haulers Intercepted 7 | . 2 . . . 5 . . . Recyclers Shooed . | . . . . . . . . . Parts Field Recycled . | . . . . . . . . . Retrieved Matter . | . . . . . . . . . Parts Self-Destructed . | . . . . . . . . . Prevented . | . . . . . . . . . Parts Restored . | . . . . . . . . . Kills | -11 -10 -10 -10 -9 -8 -7 -6 -6 ------- Run | Yrd Mat Min Exi Min Mat Fac Fac Gar Combat Hostiles Destroyed 61 | . 5 8 . . 16 14 . 18 Melee 10 | . . . . . 2 8 . . Guns 40 | . 5 8 . . 9 5 . 13 Cannons 5 | . . . . . 2 1 . 2 AOE 6 | . . . . . 3 . . 3 Classes Destroyed 13 | . 4 1 . . 4 3 . 1 Worker 1 | . . . . . 1 . . . Builder 1 | . . . . . . 1 . . Hauler 7 | . 2 . . . 5 . . . Recycler 3 | . 1 . . . 2 . . . Operator 1 | . 1 . . . . . . . Swarmer 10 | . . 6 . . 1 3 . . Grunt 28 | . 5 2 . . 10 5 . 6 Brawler 2 | . . . . . . 1 . 1 Duelist 2 | . . . . . 1 1 . . Sentry 10 | . . . . . 3 1 . 6 Specialist 2 | . . . . . . . . 2 Hunter 6 | . . . . . 1 2 . 3 Programmer 1 | . . . . . . 1 . . Best Kill Streak 6 | . 3 3 . . 4 6 . 5 Combat Bots Only 5 | . 2 3 . . 3 5 . 5 Max Kills in Single Turn 2 | . 1 1 . . 2 1 . 2 Gunslinging . | . . . . . . . . . Exploded 2 | . . . . . 2 . . 2 Melee 1 | . . . . . 1 1 . . Uniques/NPCs Destroyed . | . . . . . . . . . Combat | -11 -10 -10 -10 -9 -8 -7 -6 -6 -------- Run | Yrd Mat Min Exi Min Mat Fac Fac Gar Hostile Shots Fired 797 | . 44 59 . . 164 128 . 402 Missed 217 | . 10 5 . . 50 30 . 122 Hits 580 | . 34 54 . . 114 98 . 280 Melee 15 | . . . . . 2 13 . . Projectile 565 | . 34 54 . . 112 85 . 280 AOE 2 | . . . . . 2 . . . Critical Strikes 17 | . . 1 . . 4 8 . 4 Damage Taken 8505 | . 465 533 . . 1980 1996 . 3531 Core 1859 | . 69 41 . . 353 546 . 850 Absorbed by Shields . | . . . . . . . . . Redirected to Shielding 27 | . . . . . 27 . . . Core Remaining (%) 53 | 100 . . . 56 35 22 . . Volleys Fired 196 | . 34 29 . . 64 18 . 51 Largest 3 | . 2 2 . . 2 2 . 3 Hottest 205 | . 85 115 . . 101 115 . 205 Shots Fired 377 | . 68 56 . . 107 30 . 116 Gun 333 | . 68 56 . . 87 21 . 101 Cannon 28 | . . . . . 14 9 . 5 Launcher 16 | . . . . . 6 . . 10 Special . | . . . . . . . . . Kinetic 145 | . 34 11 . . 51 11 . 38 Thermal 205 | . 34 45 . . 43 19 . 64 Explosive 11 | . . . . . 6 . . 5 Electromagnetic 16 | . . . . . 7 . . 9 Robot Hit Streak 14 | . 9 5 . . 14 6 . 11 Robot Miss Streak 5 | . 2 4 . . 4 5 . 5 Penetration Max 1 | . . . . . 1 . . 1 Secondary Targets 8 | . 2 1 . . . . . 5 Max Gunslinging Chain 1 | . 1 1 . . . . . 1 Shots Hit Robots 294 | . 45 27 . . 88 51 . 83 Core Hits 161 | . 20 11 . . 39 20 . 71 Critical Kills 1 | . . . . . . . . 1 Critical Parts Destroyed 1 | . 1 . . . . . . . Critical Strikes 21 | . 3 3 . . 8 4 . 3 Burn 13 | . 2 3 . . 6 . . 2 Destroy 2 | . 1 . . . . . . 1 Blast 1 | . . . . . . 1 . . Sever 5 | . . . . . 2 3 . . Melee Attacks 94 | . . . . . 29 56 8 1 Impact . | . . . . . . . . . Slashing 94 | . . . . . 29 56 8 1 Piercing . | . . . . . . . . . Sneak Attacks 8 | . . . . . 4 4 . . Combat Hostiles 2 | . . . . . . 2 . . Follow-up Attacks 4 | . . . . . . 4 . . Damage Inflicted 7445 | . 582 367 . . 2923 1477 . 2096 Guns 3791 | . 582 367 . . 1174 200 . 1468 Cannons 474 | . . . . . 221 126 . 127 Explosions 1295 | . . . . . 794 . . 501 Melee 1885 | . . . . . 734 1151 . . Ramming . | . . . . . . . . . Kinetic 1766 | . 279 27 . . 765 141 . 554 Thermal 2396 | . 303 340 . . 560 185 . 1008 Explosive 1154 | . . . . . 794 . . 360 Electromagnetic 244 | . . . . . 70 . . 174 Impact . | . . . . . . . . . Slashing 1885 | . . . . . 734 1151 . . Piercing . | . . . . . . . . . Highest Corruption 13 | . . . . . . 13 . 1 Average Corruption 9 | . . . . . . 11 . 1 Corruption Purged . | . . . . . . . . . Corruption Blocked . | . . . . . . . . . Effects 30 | . . . . . . 29 . 1 Message Errors 8 | . . . . . . 8 . . Matter Fused 10 | . . . . . . 9 . 1 Heat Flow Errors 3 | . . . . . . 3 . . Energy Discharges 4 | . . . . . . 4 . . Data Loss (minor) 3 | . . . . . . 3 . . Misfires 1 | . . . . . . 1 . . Alerts 1 | . . . . . . 1 . . Overload Shots . | . . . . . . . . . Overflow Damage 106 | . . . . . 27 79 . . Projectiles 13 | . . . . . 13 . . . Explosions . | . . . . . . . . . Melee 93 | . . . . . 14 79 . . Knockbacks 3 | . . . . . 2 1 . . Impact . | . . . . . . . . . Kinetic 3 | . . . . . 2 1 . . Secondary . | . . . . . . . . . Self-Inflicted Damage 19 | . . . . . . . . 19 Shots 1 | . . . . . . . . 1 Rammed . | . . . . . . . . . Targets Rammed . | . . . . . . . . . Kicked . | . . . . . . . . . Crushed . | . . . . . . . . . Highest Temperature 936 | . 177 503 . . 376 235 . 936 Average Temperature 155 | . 60 228 . . 137 81 . 214 Received Heat Transfer 1965 | . 261 150 . . 696 150 . 708 Effects 40 | . . 4 . . 2 . . 34 Shutdowns 11 | . . 2 . . . . . 9 Energy Bleed 6 | . . 1 . . . . . 5 Interference 8 | . . 1 . . 1 . . 6 Matter Decay 3 | . . . . . . . . 3 Short Circuit 3 | . . . . . 1 . . 2 Damage (minor) 3 | . . . . . . . . 3 Damage (major) 3 | . . . . . . . . 3 Damage (core) 3 | . . . . . . . . 3 Siege Activations . | . . . . . . . . . Martial Activations . | . . . . . . . . . Shielding Activations . | . . . . . . . . . Robots Disrupted . | . . . . . . . . . Combat Hostiles . | . . . . . . . . . Robots Corrupted . | . . . . . . . . . Combat Hostiles . | . . . . . . . . . Parts Fried 1 | . . . . . . . . 1 Impact Corruptions . | . . . . . . . . . Robots Melted . | . . . . . . . . . Combat Hostiles . | . . . . . . . . . Parts Melted 12 | . 1 2 . . 2 . . 7 Heat Transferred 5792 | . 856 1147 . . 1480 333 . 1976 Parts Sabotaged . | . . . . . . . . . Parts Stolen . | . . . . . . . . . Parts Stripped . | . . . . . . . . . Power Chain Reactions 1 | . . . . . . . . 1 Alert | -11 -10 -10 -10 -9 -8 -7 -6 -6 ------- Run | Yrd Mat Min Exi Min Mat Fac Fac Gar Maximum Alert Level 1 | . . . . . 1 . . 1 Low Security (%) 89 | 100 100 100 . 100 78 100 100 44 Level 1 10 | . . . . . 21 . . 55 Level 2 . | . . . . . . . . . Level 3 . | . . . . . . . . . Level 4 . | . . . . . . . . . Level 5 . | . . . . . . . . . High Security . | . . . . . . . . . Max Security . | . . . . . . . . . Peak Influence 390 | . 65 99 . . 262 130 2 390 Initial 112 | . . . . . . 112 . 9 Average 57 | . 14 16 . . 79 35 . 223 Influence Increases 1939 | . 150 205 . . 614 400 19 551 Destroy 0b10 Robot/C 1220 | . 100 160 . . 320 280 . 360 Destroy 0b10 Robot/NC 65 | . 20 . . . 40 5 . . Destroy Leader 224 | . 24 30 . . 80 70 . 20 Successful Hack 56 | . 5 . . . 35 2 14 . Disable Machine 60 | . . . . . 45 15 . . Anti-Garrison Action 100 | . . . . . . . . 100 Destroy Structure 154 | . 1 . . . 64 13 5 71 Partial Spotted 45 | . . . . . 30 15 . . Lose Combat Pursuer 15 | . . 15 . . . . . . Influence Decreases 1539 | . 150 139 66 . 366 648 5 165 Entered New Map 207 | . . . 66 . . 136 . 5 Time Decay 912 | . 140 119 . . 306 342 5 . Lost Part 420 | . 10 20 . . 60 170 . 160 Squads Dispatched 13 | . . . . 1 3 8 1 . Investigation 6 | . . . . 1 1 3 1 . Extermination 2 | . . . . . . 2 . . Reinforcement 2 | . . . . . 2 . . . Assault . | . . . . . . . . . Garrison 3 | . . . . . . 3 . . Intercept . | . . . . . . . . . Searches Triggered . | . . . . . . . . . Construction Impeded 1 | . . . . . 1 . . . Haulers Reinforced . | . . . . . . . . . Active Scanning Responses . | . . . . . . . . . Cargo Convoy Interrupts . | . . . . . . . . . Stealth | -11 -10 -10 -10 -9 -8 -7 -6 -6 --------- Run | Yrd Mat Min Exi Min Mat Fac Fac Gar Distress Signals 6 | . 1 . . . 3 . . 2 Communications Jammed . | . . . . . . . . . Distress Signals . | . . . . . . . . . Times Spotted 109 | . 15 9 . . 44 15 . 26 Peak Tracking Total 10 | . 5 3 . . 10 4 . 7 Tactical Retreats 9 | . . 1 . . 8 . . . ECM-based Alert Blocks 16 | . . . . . 16 . . . Traps | -11 -10 -10 -10 -9 -8 -7 -6 -6 ------- Run | Yrd Mat Min Exi Min Mat Fac Fac Gar Traps Triggered 2 | . . . . . . . 1 1 Indirectly . | . . . . . . . . . Trap Hack Attempts . | . . . . . . . . . Triggered . | . . . . . . . . . Disarmed . | . . . . . . . . . Reprogrammed . | . . . . . . . . . Reused . | . . . . . . . . . Traps Extracted . | . . . . . . . . . Installed . | . . . . . . . . . Triggered . | . . . . . . . . . Machines | -11 -10 -10 -10 -9 -8 -7 -6 -6 ---------- Run | Yrd Mat Min Exi Min Mat Fac Fac Gar Machines Disabled 5 | . . . . . 3 1 . 1 Max in Single Turn 1 | . . . . . 1 1 . 1 Garrison Relay 1 | . . . . . . . . 1 Phase Generator 1 | . . . . . . . . 1 Machines Repaired . | . . . . . . . . . Machines Dismantled . | . . . . . . . . . Machines Sabotaged . | . . . . . . . . . Overloaded Fab Kills . | . . . . . . . . . Hacking | -11 -10 -10 -10 -9 -8 -7 -6 -6 --------- Run | Yrd Mat Min Exi Min Mat Fac Fac Gar Machines Accessed 21 | . 2 2 1 1 7 6 1 1 Terminals 12 | . 2 1 . . 6 2 . 1 Fabricators 1 | . . . . . . 1 . . Repair Stations . | . . . . . . . . . Recycling Units 1 | . . . . . . 1 . . Scanalyzers 2 | . . . . . 1 1 . . Garrison Access 2 | . . . . . . 1 1 . Total Hacks 45 | . 5 3 1 1 16 15 2 2 Successful 23 | . 2 2 1 1 9 7 1 . Failed 22 | . 3 1 . . 7 8 1 2 Catastrophic 7 | . . . . . . 5 1 1 Database Lockouts . | . . . . . . . . . Manual 3 | . . . 1 . 2 . . . Terminals 23 | . 5 2 . . 10 4 . 2 Fabricators 2 | . . . . . . 2 . . Repair Stations . | . . . . . . . . . Recycling Units 2 | . . . . . . 2 . . Scanalyzers 11 | . . . . . 6 5 . . Garrison Access 4 | . . . . . . 2 2 . Terminal Hacks 12 | . 2 2 1 1 6 . . . Prototype ID Bank 4 | . 2 . . . 2 . . . Open Door 2 | . . 1 . 1 . . . . Branch Access Points 1 | . . . . . 1 . . . Emergency Access Points 2 | . . . . . 2 . . . Dispatch Records 1 | . . 1 . . . . . . Zone Layout 1 | . . . . . 1 . . . Proto ID Catalog 1 | . . . 1 . . . . . Fabricator Hacks 2 | . . . . . . 2 . . Load Schematic 1 | . . . . . . 1 . . Build 1 | . . . . . . 1 . . Repair Station Hacks . | . . . . . . . . . Recycling Unit Hacks 1 | . . . . . . 1 . . Report Inventory 1 | . . . . . . 1 . . Scanalyzer 7 | . . . . . 3 4 . . Insert Component 2 | . . . . . 1 1 . . Analyze 1 | . . . . . . 1 . . Retrieve Study 4 | . . . . . 2 2 . . Garrison Access Hacks 1 | . . . . . . . 1 . Unlock Access 1 | . . . . . . . 1 . Unauthorized Hacks . | . . . . . . . . . Terminals . | . . . . . . . . . Fabricators . | . . . . . . . . . Repair Stations . | . . . . . . . . . Recycling Units . | . . . . . . . . . Scanalyzers . | . . . . . . . . . Garrison Access . | . . . . . . . . . Data Cores Recovered . | . . . . . . . . . Used . | . . . . . . . . . Hacking Detections 16 | . 2 1 . . 5 6 1 1 Full Trace Events 6 | . . . . . 1 3 1 1 Feedback Events 1 | . . . . . . . . 1 Corruption 1 | . . . . . . . . 1 Feedback Blocked . | . . . . . . . . . Robot Schematics Acquired . | . . . . . . . . . Robots Built . | . . . . . . . . . Authchips . | . . . . . . . . . Time . | . . . . . . . . . Total Robot Build Rating . | . . . . . . . . . Part Schematics Acquired 1 | . . . . . . 1 . . Parts Built 1 | . . . . . . 1 . . Authchips . | . . . . . . . . . Time 116 | . . . . . . 116 . . Total Part Build Rating 3 | . . . . . . 3 . . Part Studies Acquired 4 | . . . . . 2 2 . . Parts Repaired . | . . . . . . . . . Time . | . . . . . . . . . Parts Recycled . | . . . . . . . . . Recycled Matter . | . . . . . . . . . Retrieved Matter . | . . . . . . . . . Retrieved Components . | . . . . . . . . . Parts Scanalyzed 1 | . . . . . . 1 . . Part Schematics Acquired 1 | . . . . . . 1 . . Parts Damaged . | . . . . . . . . . Bothacking | -11 -10 -10 -10 -9 -8 -7 -6 -6 ------------ Run | Yrd Mat Min Exi Min Mat Fac Fac Gar Used RIF Installer 1 | . . . . . . . . 1 Robots Hacked . | . . . . . . . . . Non-combat . | . . . . . . . . . Combat . | . . . . . . . . . Robot Hacks Applied . | . . . . . . . . . Relay Couplers Released 3 | . . . . . . . . 3 Machine Destruction 3 | . . . . . . . . 3 Fabnet Peak Effective % . | . . . . . . . . . Robots Rewired . | . . . . . . . . . Allies Hacked . | . . . . . . . . . Hacks Repelled . | . . . . . . . . . Allies | -11 -10 -10 -10 -9 -8 -7 -6 -6 -------- Run | Yrd Mat Min Exi Min Mat Fac Fac Gar Total Allies . | . . . . . . . . . Largest Group . | . . . . . . . . . Highest-Rated Group . | . . . . . . . . . Highest-Rated Ally . | . . . . . . . . . Total Orders . | . . . . . . . . . Ally Attacks . | . . . . . . . . . Total Damage . | . . . . . . . . . Kills . | . . . . . . . . . Allies Corrupted . | . . . . . . . . . Allies Melted . | . . . . . . . . . Intel | -11 -10 -10 -10 -9 -8 -7 -6 -6 ------- Run | Yrd Mat Min Exi Min Mat Fac Fac Gar Active Infowar (turns) 1620 | . . . . 265 819 536 . . ECM 1620 | . . . . 265 819 536 . . Robot Analysis Total . | . . . . . . . . . Derelict Logs Recovered 3 | . . 2 . 1 . . . . Drone Launches . | . . . . . . . . . Drone Recoveries . | . . . . . . . . . Exploration | -11 -10 -10 -10 -9 -8 -7 -6 -6 ------------- Run | Yrd Mat Min Exi Min Mat Fac Fac Gar Turns Passed 6962 | 74 519 1804 666 286 838 1418 440 917 Spaces Moved 4096 | 40 260 945 456 206 661 818 176 534 Core 3 | 2 . . . . 1 . . . Treads 460 | 38 29 . 291 102 . . . . Legs 2239 | . 231 945 165 . . 188 176 534 Wheels 413 | . . . . 104 309 . . . Hover . | . . . . . . . . . Flight 981 | . . . . . 351 630 . . Fastest Speed 34 | 50 120 120 120 100 39 34 120 120 Average Speed 126 | 154 150 177 145 129 69 93 140 123 Slowest Speed 850 | 160 190 190 160 160 850 352 190 260 Overloaded Moves . | . . . . . . . . . Propulsion Burnouts . | . . . . . . . . . Robots Hopped 1 | . . . . . 1 . . . Potential Cave-ins . | . . . . . . . . . Cave-ins Triggered 1 | . . . . . . 1 . . Exploration Rate (%) 41 | 4 51 87 88 45 57 10 5 28 Regions Visited 8 Branch Regions 3 Pre-discovered Areas 2 | . . 1 . 1 . . . . Known Exits Taken 3 | . . . . . 1 1 1 . Unknown Exits Taken 5 | 1 1 1 1 1 . . . . Scrap Searched 2 | . . 1 . 1 . . . . Spaces Dug 25 | . . . . . 6 13 6 . Terrain Destroyed 150 | . . . . . 74 14 6 56 Melee 25 | . . . . . 6 13 6 . Projectile 10 | . . . . . 7 1 . 2 AOE 115 | . . . . . 61 . . 54 Terrain Rammed . | . . . . . . . . . Walls Destroyed . | . . . . . . . . . Machines Disabled . | . . . . . . . . . Actions | -11 -10 -10 -10 -9 -8 -7 -6 -6 --------- Run | Yrd Mat Min Exi Min Mat Fac Fac Gar Total 5379 | 49 322 1018 460 225 893 1362 357 693 Wait 733 | . 9 39 . . 71 412 165 37 Move 4087 | 39 259 944 455 205 658 817 176 534 Hop 1 | . . . . . 1 . . . Pick Up 81 | 4 8 2 1 5 24 16 4 17 Fast Attach 54 | 6 4 . . 3 11 14 3 13 Attach 45 | . 1 2 2 1 6 14 2 17 Detach 10 | . . . . . 2 1 . 7 Swap 26 | . 1 1 . 3 8 10 . 3 Drop 59 | . 6 1 2 8 19 9 1 13 Fire 196 | . 34 29 . . 64 18 . 51 Melee 87 | . . . . . 29 51 6 1 Ram . | . . . . . . . . . Kick . | . . . . . . . . . Crush . | . . . . . . . . . Escape Stasis . | . . . . . . . . . Rewire . | . . . . . . . . . Trap . | . . . . . . . . . Miscellaneous . | . . . . . . . . . Route ------- -11/Scrapyard -10/Materials -10/Mines (discovered 4 exits: [*Mat x2] / *Exi / [*Sub]) -10/Exiles -9/Mines -8/Materials -7/Factory -6/Factory -6/Garrison History --------- Turn | Location | Event 35 | -11/Scrapyard | Discovered new exit (range 15) 75 | -11/Scrapyard | Entered Materials 317 | -10/Materials | Build established: Mutant 336 | -10/Materials | Discovered new exit (range 13) 594 | -10/Materials | Entered Mines 603 | -10/Mines | YI-UF0 nonchalantly dropped a Grenade Launcher on the ground 640 | -10/Mines | Found the Drone Emporium 661 | -10/Mines | Build established: Scavenger-Mutant 893 | -10/Mines | Learned Materials stockpile data 1178 | -10/Mines | Deemed a non-threat by the Exiles lab entrance 1180 | -10/Mines | Discovered new exit (range 5) 1717 | -10/Mines | Learned location of Recycling (-9) 1755 | -10/Mines | Discovered new exit (range 6) 1909 | -10/Mines | Discovered new exit (range 8) 2075 | -10/Mines | Discovered new exit (range 9) 2398 | -10/Mines | Entered Exiles 2438 | -10/Exiles | Met 8R-AWN 2464 | -10/Exiles | Build established: Mutant 2466 | -10/Exiles | Met EX-HEX 2523 | -10/Exiles | Met EX-BIN 2552 | -10/Exiles | Aligned with FarCom system 2553 | -10/Exiles | Given EX-Vault access code 2589 | -10/Exiles | Opened EX-Vault 2603 | -10/Exiles | Found Flying Fortress v7 2634 | -10/Exiles | Warned to stay clear of 0b10 Research branches 2680 | -10/Exiles | Met EX-DEC 2752 | -10/Exiles | Visited The Gauntlet 2886 | -10/Exiles | Build established: Scavenger-Mutant 3034 | -10/Exiles | Discovered new exit (range 14) 3064 | -10/Exiles | Left Exiles lab with Flying Fortress v7 3064 | -10/Exiles | Entered Mines 3065 | -9/Mines | Learned location of Storage (-9) 3071 | -9/Mines | Learned location of 1 exit from Materials 3219 | -9/Mines | Met a Derelict shopkeep closing up shop 3327 | -9/Mines | Received a Rocket Launcher from a helpful Derelict 3336 | -9/Mines | Discovered new exit (range 11) 3350 | -9/Mines | Entered Materials 3350 | -8/Materials | Evolved 4 slots: Propulsion x3, Utility x1 3351 | -8/Materials | Identified exit to Factory 3539 | -8/Materials | Build established: Mutant 3890 | -8/Materials | Lost 5 parts (1p3n1w) 3907 | -8/Materials | Core integrity fell below 50% 4188 | -8/Materials | Entered Factory 4188 | -7/Factory | Evolved 2 slots: Power x1, Propulsion x1 4324 | -7/Factory | Fabricated Imp. VTOL Module? 4633 | -7/Factory | Discovered new exit (range 8) 4636 | -7/Factory | Identified exit to Factory 4719 | -7/Factory | Garrison activated, responded to threat 4833 | -7/Factory | Crushed by falling debris 4904 | -7/Factory | Lost 8 parts (1p5n1u1w) 4948 | -7/Factory | System corruption reached 10% 4975 | -7/Factory | Core integrity fell below 50% 4991 | -7/Factory | Lost 5 parts (2p2n1u) 5199 | -7/Factory | Lost 4 parts (1p2n1w) 5433 | -7/Factory | Build established: Scavenger-Mutant 5606 | -7/Factory | Entered another Factory area 5606 | -6/Factory | Evolved 2 slots: Utility x1, Weapon x1 5775 | -6/Factory | Build established: Scavenger-Gladiator 6046 | -6/Factory | Identified exit to Garrison 6046 | -6/Factory | Entered Garrison 6210 | -6/Garrison | Lost 12 parts (1p5n1u5w) 6438 | -6/Garrison | Triggered checkpoint 6457 | -6/Garrison | Garrison Relay disabled 6501 | -6/Garrison | Core integrity fell below 50% 6508 | -6/Garrison | Phase Generator disabled 6517 | -6/Garrison | Core integrity fell below 20% 6577 | -6/Garrison | Installed Relay Interface Framework 6842 | -6/Garrison | Build established: Scavenger-Skirmisher 6963 | -6/Garrison | Triggered checkpoint 6963 | -6/Garrison | Spotted B-75 Beast 6963 | -6/Garrison | Destroyed by S-27 Virus with Autogun Last Messages --------------- 06884_ Acquired 27 matter. 06894_ Acquired 10 matter. 06922_ C-45 Heavy ARC bursts open, deploying its payload. 06922_ G-67 Veteran unfolds itself. 06922_ G-50 Soldier unfolds itself. 06922_ Critical hit (Burn: +37). 06929_ Slug penetrates Wall. 06936_ G-50 Soldier destroyed. 06938_ Hvy. Laser destroyed. 06942_ Slug penetrates Wall. 06946_ Critical hit (Burn: +37). 06948_ G-67 Veteran destroyed. 06957_ Slug penetrates G-50 Soldier. 06960_ G-50 Soldier destroyed. 06960_ Switching to secondary target: G-50 Soldier. 06961_ Imp. Deuterium Engine destroyed. 06963_ Slug penetrates G-50 Soldier. 06963_ G-50 Soldier destroyed. 06963_ Switching to secondary target: S-27 Virus. [Achievement: Let Me Out Of Here] Map ----- +----------------------------------------------------+ | ?????????????????????????????????????????????????? | | ?????????????????????????????????????????????????? | | ?????????????????????????????????????????????????? | | ?????????????????????????????????????????????????? | | ?????????????????????????????????????????????????? | | ?????????????????????????????????????????????????? | | ?????????????????????????????????????????????????? | | ?????????????????????????????????????????????????? | | ?????????????????????????????????????????????????? | | ?????????????????????????????????????????????????? | | ???????????????????? ^ ?? ?????????????????????? | | ???????????????????" ?? ???????g?????????????? | | ???????????????????" ?? BB???????g?????????????? | | ???????????????????" ?? BB???????g?????????????? | | ???????????????????" ?? ?????????????????????? | | ???????????????????# ?? ?????????????????????? | | ???????????????????# ## ??????????????????????? | | ?????????#?????????? ??????????????????????? | | ????????? ?????????? ??????????????????????? | | ????????? ?????????? ??????????????????????? | | ????????? ??????????# ## ??????????????????????? | | ????????# #?????????# ##%C??????????????????????? | | ????????# ##????#???# ##%#??????????????????????? | | ??????### #??? #???# ##=#??????????????????????? | | ####### ##### ##### s##%#??????????????????????? | | ss@#??????????????????????? | | ### ### ## ####### ####??????????????????????? | | ??# #### #?????# #?????????????????????????? | | ??##"## #[#?????# #?????????????????????????? | | ???# # # ####### #?????????????????????????? | | ???# #?????????????????????????? | | ???# ![ #?????????????????????????? | | ???## # ! ####### ##?????????????????????????? | | ????# # #[#?????# #??????????????????????????? | | #???# ## #?????# #??????????????????????????? | | ##?## ## #?????# #??????????????????????????? | | ##?# ## ####### #??????????????????????????? | | ##### # #[ //# #??????????????????????????? | | ###?### [^ !/%%#??????????????????????????? | | # #?## # ^ [! *#??????????????????????????? | | # #?# ###!! [#!#??????????????????????????? | | #### #?####### #??????????????????????????? | | = #????#### #??????????????????????????? | | ###### #?#### ###????????????????????????? | | ##???# #?#""" # ##???????????????????????? | | ##???#######?#" " #???????????????????????? | | ##???????????#"" " ##???????????????????????? | | ##????????????#"" [ # #????????????????????????? | | #?????????????#" =* ##???????????????????????? | | #?????????????#""" * """#???????????????????????? | +----------------------------------------------------+ Best States ------------- Heat Dissipation 56 Energy Generation 29 Energy Capacity 480 Matter Stores 300 Matter Capacity 300 Sight Range 16 Terrain Scan Density 10 ECM Strength 1 Armor Coverage 150 Core Shielding 20 Phase Shifting 5 Evasion (%) 71 Melee Accuracy 6 Recoil Reduction 2 Item Schematics ----------------- Imp. VTOL Module | -7/Factory | Scanalyzed Robot Schematics ------------------ None Fabricated ------------ Imp. VTOL Module | x1 | -7/Factory Repaired ---------- Nothing Studied --------- Cesium-ion Thruster | -8/Materials | Hacked Katana | -8/Materials | Hacked Hvy. Rocket Launcher | -7/Factory | Hacked Gauss Cannon | -7/Factory | Hacked Alien Tech Used ----------------- None Achievements -------------- Just What I Needed Let Me Out Of Here Part-time Excavator Challenges ------------ None Game ------ Seed AntisysJunkLegs Manual? 0 Play Time 01:06:37 Cumulative 14.9 hours Start 2026.02.15 @ 14:52:37 End 2026.02.16 @ 21:39:21 Sessions 3 Manual Loads 0 Difficulty Rogue Special Mode None Game No. 15 Rogue 15 Adventurer 0 Explorer 0 Win Type - Total 0 Types 0/0/0/0/0/0/0/0/0/0 Lore% 11 Gallery% 20 Achievement% 17 Wizard Run 0 Options --------- Layout 0 ASCII 0 Keyboard 0 Movement Arrows Keybinds 0 Fullscreen 1 Font 18/SmallcapsGlow Map View 76x50 Zoom Use 0% Tactical HUD 1 Map Filters NONE Filters NONE Steam 1 RUN: 3ac2fd2f-7afe-4a4f-9b58-48fc812eacfb